fUST/lending_fUST_20250615
["ID","MTS","AMOUNT","RATE_DAILY","PERIOD"]
[365862724,1749966640915,-541.18,0.00021917,4]
[365862726,1749966640924,-2700.54,0.00021917,4]
[365862729,1749966640934,-460.0,0.00021917,4]
[365862731,1749966640943,-446.15837142,0.00021917,4]
[365862733,1749966640953,-658.31,0.00021917,4]
[365862735,1749966640962,-827.29,0.00021917,4]
[365862737,1749966640971,-460.0,0.00021917,4]
[365862739,1749966640980,-671.48,0.00021917,4]
[365862741,1749966640990,-1784.56,0.00021917,4]
[365862743,1749966640999,-460.0,0.00021917,4]
[365862745,1749966641008,-460.0,0.00021917,4]
[365862747,1749966641018,-460.0,0.00021917,4]
[365862749,1749966641027,-611.72,0.00021917,4]
[365862751,1749966641036,-273.73843273,0.00021917,4]
[365862753,1749966641046,-3838.9,0.00021917,4]
[365862755,1749966641055,-460.0,0.00021917,4]
[365862757,1749966641064,-460.0,0.00021917,4]
[365862759,1749966641074,-460.0,0.00021917,4]
[365862761,1749966641083,-460.0,0.00021917,4]
[365862763,1749966641092,-500.0,0.00021918,2]
[365862765,1749966641101,-500.0,0.00021918,2]
[365862767,1749966641111,-310.11418773,0.00021918,2]
[365862769,1749966641121,-151.0,0.00021938,7]
[365862771,1749966641130,-168.0,0.00021967,2]
[365862773,1749966641139,-151.1861261,0.00021973,2]
[365862775,1749966641148,-503.0758213,0.00021973,2]
[365862777,1749966641158,-155.47771843,0.00021973,2]
[365862779,1749966641167,-271.25855231,0.00021973,2]
[365862781,1749966641176,-502.19974442,0.00021973,2]
[365862782,1749966641185,-500.0,0.00021973,2]
[365862783,1749966641195,-500.0,0.00021973,2]
[365862784,1749966641204,-502.95677261,0.00021973,2]
[365862785,1749966641213,-511.35442707,0.00021973,2]
[365862786,1749966641223,-192.73412963,0.00021973,2]
[365862787,1749966641232,-500.0,0.00021973,2]
[365862788,1749966641241,-500.0,0.00021973,2]
[365862789,1749966641251,-504.84008773,0.00021973,2]
[365862790,1749966641261,-500.0,0.00021973,2]
[365862791,1749966641270,-500.0,0.00021973,2]
[365862792,1749966641279,-501.78903944,0.00021973,2]
[365862793,1749966641289,-500.0,0.00021973,2]
[365862794,1749966641298,-500.80251135,0.00021973,2]
[365862795,1749966641308,-347.69715989,0.00021973,2]
[365862796,1749966641317,-502.90224361,0.00021973,2]
[365862797,1749966641327,-500.0,0.00021973,2]
[365862798,1749966641336,-507.87382586,0.00021973,2]
[365862799,1749966641345,-151.0,0.00022,7]
[365862800,1749966641354,-151.0,0.00022,7]
[365862801,1749966641363,-154.693772,0.00022,7]
[365862802,1749966641373,-2312.76609613,0.00022022,2]
[365862803,1749966641382,-207.4,0.00022151,2]
[365862804,1749966641391,-1688.0,0.00022151,2]
[365862805,1749966641400,-151.0,0.00022151,2]
[365862806,1749966641410,-500.0,0.00022151,2]
[365862807,1749966641419,-500.0,0.00022151,2]
[365862808,1749966641428,-151.0,0.00022151,2]
[365862809,1749966641437,-500.0,0.00022151,2]
[365862810,1749966641447,-151.0,0.00022151,2]
[365862811,1749966641456,-151.0,0.00022151,2]
[365862812,1749966641465,-591.10451232,0.00022151,2]
[365862813,1749966641474,-151.0,0.00022151,2]
[365862814,1749966641483,-258.210803,0.00022151,2]
[365862815,1749966641493,-151.824491,0.00022152,7]
[365862816,1749966641503,-151.0,0.00022152,7]
[365862817,1749966641512,-151.0,0.0002219,7]
[365862818,1749966641522,-460.0,0.00022191,4]
[365862820,1749966641532,-151.0,0.00022191,7]
[365862821,1749966641541,-151.0,0.00022191,7]
[365862822,1749966641550,-151.0,0.00022191,7]
[365862824,1749966641562,-163.632209,0.00022191,7]
[365862826,1749966641571,-151.0,0.00022191,7]
[365862828,1749966641580,-151.0,0.00022191,7]
[365862829,1749966641589,-151.0,0.00022191,7]
[365862831,1749966641598,-460.0,0.00022191,4]
[365862834,1749966641608,-460.0,0.00022191,4]
[365862836,1749966641618,-460.0,0.00022191,4]
[365862838,1749966641628,-508.45,0.00022191,4]
[365862840,1749966641638,-460.0,0.00022191,4]
[365862842,1749966641649,-460.0,0.00022191,4]
[365862844,1749966641659,-721.41,0.00022191,4]
[365862846,1749966641668,-460.0,0.00022191,4]
[365862848,1749966641678,-460.0,0.00022191,4]
[365862850,1749966641687,-460.0,0.00022191,4]
[365862852,1749966641696,-360.0,0.00022191,4]
[365862854,1749966641706,-460.0,0.00022191,4]
[365862856,1749966641715,-585.05,0.00022191,4]
[365862858,1749966641724,-460.0,0.00022191,4]
[365862860,1749966641733,-460.0,0.00022191,2]
[365862862,1749966641743,-495.04161877,0.00022191,4]
[365862864,1749966641752,-460.0,0.00022191,4]
[365862866,1749966641762,-460.0,0.00022191,4]
[365862868,1749966641771,-499.10135825,0.00022191,4]
[365862869,1749966641780,-460.0,0.00022191,4]
[365862872,1749966641790,-460.0,0.00022191,4]
[365862873,1749966641799,-460.0,0.00022191,4]
[365862875,1749966641808,-460.0,0.00022191,4]
[365862877,1749966641819,-460.0,0.00022191,4]
[365862879,1749966641828,-460.0,0.00022191,4]
[365862881,1749966641837,-460.0,0.00022191,4]
[365862883,1749966641846,-460.0,0.00022191,4]
[365862885,1749966641855,-460.0,0.00022191,4]
[365862887,1749966641864,-460.0,0.00022191,4]
[365862889,1749966641874,-2760.11,0.00022191,4]
[365862891,1749966641884,-460.0,0.00022191,4]
[365862893,1749966641893,-460.0,0.00022191,4]
[365862895,1749966641903,-460.0,0.00022191,4]
[365862897,1749966641912,-3303.82,0.00022191,4]
[365862899,1749966641921,-420.0,0.00022191,4]
[365862901,1749966641930,-635.23,0.00022191,4]
[365862903,1749966641940,-3015.46,0.00022191,4]
[365862905,1749966641950,-460.0,0.00022191,4]
[365862907,1749966641960,-420.0,0.00022191,4]
[365862909,1749966641969,-913.79,0.00022191,4]
[365862911,1749966641978,-464.87900277,0.00022191,4]
[365862913,1749966641988,-3798.34,0.00022191,4]
[365862915,1749966641997,-460.0,0.00022191,4]
[365862917,1749966642006,-460.0,0.00022191,4]
[365862919,1749966642015,-1209.64,0.00022191,4]
[365862921,1749966642025,-542.42,0.00022191,4]
[365862923,1749966642034,-420.0,0.00022191,4]
[365862925,1749966642044,-366.9651575,0.00022191,4]
[365862927,1749966642054,-1388.45,0.00022191,4]
[365862929,1749966642064,-460.0,0.00022191,4]
[365862931,1749966642075,-340.04325517,0.00022191,4]
[365862933,1749966642084,-351.23316417,0.00022191,4]
[365862935,1749966642094,-320.0,0.00022191,4]
[365862937,1749966642103,-460.0,0.00022191,4]
[365862939,1749966642112,-557.09,0.00022191,4]
[365862941,1749966642123,-460.0,0.00022191,4]
[365862943,1749966642132,-460.0,0.00022191,4]
[365862945,1749966642141,-460.0,0.00022191,4]
[365862947,1749966642151,-460.0,0.00022191,4]
[365862949,1749966642161,-474.06,0.00022191,4]
[365862951,1749966642170,-1556.61,0.00022191,4]
[365862953,1749966642179,-808.75,0.00022191,4]
[365862955,1749966642188,-460.0,0.00022191,4]
[365862957,1749966642198,-460.0,0.00022191,4]
[365862959,1749966642207,-1617.38,0.00022191,4]
[365862961,1749966642216,-460.0,0.00022191,4]
[365862963,1749966642225,-479.61,0.00022191,4]
[365862965,1749966642234,-460.0,0.00022191,4]
[365862967,1749966642243,-460.0,0.00022191,4]
[365862969,1749966642253,-460.0,0.00022191,4]
[365862971,1749966642263,-496.38,0.00022191,4]
[365862973,1749966642272,-519.43,0.00022191,4]
[365862975,1749966642282,-478.5,0.00022191,4]
[365862977,1749966642291,-460.0,0.00022191,4]
[365862979,1749966642300,-467.46,0.00022191,4]
[365862981,1749966642309,-460.0,0.00022191,4]
[365862983,1749966642318,-1017.17,0.00022191,4]
[365862985,1749966642328,-717.18,0.00022191,4]
[365862987,1749966642338,-460.0,0.00022191,4]
[365862989,1749966642347,-460.0,0.00022191,4]
[365862991,1749966642357,-460.0,0.00022191,4]
[365862993,1749966642366,-460.0,0.00022191,4]
[365862995,1749966642375,-274.45611991,0.00022191,4]
[365862997,1749966642384,-460.0,0.00022191,4]
[365862999,1749966642393,-460.0,0.00022191,4]
[365863001,1749966642402,-1630.08,0.00022191,4]
[365863003,1749966642411,-460.0,0.00022191,4]
[365863005,1749966642421,-460.0,0.00022191,4]
[365863007,1749966642430,-460.0,0.00022191,4]
[365863008,1749966642440,-2417.17,0.00022191,4]
[365863010,1749966642448,-460.0,0.00022191,4]
[365863012,1749966642458,-348.23200574,0.00022191,4]
[365863014,1749966642467,-1935.74,0.00022191,4]
[365863017,1749966642476,-648.65,0.00022191,4]
[365863018,1749966642486,-460.0,0.00022191,4]
[365863020,1749966642497,-460.0,0.00022191,4]
[365863023,1749966642508,-484.04,0.00022191,4]
[365863024,1749966642519,-460.0,0.00022191,4]
[365863026,1749966642530,-1584.24,0.00022191,4]
[365863028,1749966642540,-460.0,0.00022191,4]
[365863030,1749966642549,-460.0,0.00022191,4]
[365863045,1749966642681,-460.0,0.00022191,4]
[365863047,1749966642691,-460.0,0.00022191,4]
[365863049,1749966642701,-460.0,0.00022191,4]
[365863051,1749966642710,-327.22553085,0.00022191,4]
[365863053,1749966642720,-460.0,0.00022191,4]
[365863055,1749966642729,-541.18,0.00022191,4]
[365863057,1749966642739,-2700.54,0.00022191,4]
[365863059,1749966642748,-658.31,0.00022191,4]
[365863061,1749966642758,-827.29,0.00022191,4]
[365863063,1749966642767,-460.0,0.00022191,4]
[365863065,1749966642777,-671.48,0.00022191,4]
[365863067,1749966642786,-1784.56,0.00022191,4]
[365863069,1749966642796,-460.0,0.00022191,4]
[365863071,1749966642805,-460.0,0.00022191,4]
[365863074,1749966642816,-611.72,0.00022191,4]
[365863076,1749966642826,-3838.9,0.00022191,4]
[365863078,1749966642835,-286.71,0.00022191,4]
[365863080,1749966642844,-460.0,0.00022191,4]
[365863082,1749966642852,-460.0,0.00022191,4]
[365863084,1749966642861,-841.46,0.000222,7]
[365863086,1749966642871,-1366.60024151,0.00022206,2]
[365863088,1749966642881,-1750.456,0.00022206,2]
[365863090,1749966642890,-173.02478112,0.00022261,2]
[365863092,1749966642899,-845.25843836,0.00022262,2]
[365863094,1749966642909,-694.24718203,0.00022282,2]
[365863096,1749966642919,-500.0,0.00022294,2]
[365863098,1749966642928,-2028.42,0.000223,7]
[365863100,1749966642937,-160.0,0.00022311,2]
[365863102,1749966642946,-160.0,0.00022311,2]
[365863104,1749966642956,-213.32089821,0.00022311,2]
[365863106,1749966642965,-424.47602138,0.00022311,2]
[365863108,1749966642975,-12535.62630729,0.00022311,2]
[365863110,1749966642984,-160.0,0.00022311,2]
[365863112,1749966642994,-160.0,0.00022311,2]
[365863114,1749966643003,-835.55256958,0.00022311,2]
[365863116,1749966643013,-160.0,0.00022311,2]
[365863118,1749966643025,-229.86375354,0.00022311,2]
[365863120,1749966643034,-461.58943395,0.00022323,2]
[365863122,1749966643043,-151.0,0.00022464,7]
[365863124,1749966643052,-269.1933407,0.00022465,4]
[365863126,1749966643062,-151.0,0.00022465,7]
[365863128,1749966643071,-184.413066,0.00022465,7]
[365863130,1749966643081,-151.0,0.00022465,7]
[365863132,1749966643090,-460.0,0.00022465,4]
[365863134,1749966643100,-460.0,0.00022465,4]
[365863136,1749966643109,-508.45,0.00022465,4]
[365863138,1749966643119,-591.66791422,0.00022465,4]
[365863140,1749966643128,-460.0,0.00022465,4]
[365863142,1749966643138,-721.41,0.00022465,4]
[365863143,1749966643148,-460.0,0.00022465,4]
[365863145,1749966643157,-585.05,0.00022465,4]
[365863147,1749966643167,-460.0,0.00022465,2]
[365863149,1749966643178,-460.0,0.00022465,4]
[365863151,1749966643187,-403.75576383,0.00022465,4]
[365863153,1749966643196,-460.0,0.00022465,4]
[365863155,1749966643206,-460.0,0.00022465,4]
[365863157,1749966643215,-460.0,0.00022465,4]
[365863159,1749966643225,-460.0,0.00022465,4]
[365863161,1749966643234,-460.0,0.00022465,4]
[365863163,1749966643244,-400.0,0.00022465,4]
[365863165,1749966643253,-266.74776643,0.00022465,4]
[365863167,1749966643262,-2760.11,0.00022465,4]
[365863169,1749966643271,-460.0,0.00022465,4]
[365863171,1749966643280,-328.93121441,0.00022465,4]
[365863173,1749966643289,-460.0,0.00022465,4]
[365863175,1749966643298,-3303.82,0.00022465,4]
[365863177,1749966643309,-635.23,0.00022465,4]
[365863179,1749966643318,-3015.46,0.00022465,4]
[365863181,1749966643328,-913.79,0.00022465,4]
[365863183,1749966643337,-3798.34,0.00022465,4]
[365863185,1749966643346,-460.0,0.00022465,4]
[365863187,1749966643356,-1209.64,0.00022465,4]
[365863189,1749966643365,-542.42,0.00022465,4]
[365863191,1749966643374,-1388.45,0.00022465,4]
[365863192,1749966643383,-226.20254385,0.00022465,4]
[365863194,1749966643392,-460.0,0.00022465,4]
[365863196,1749966643402,-557.09,0.00022465,4]
[365863198,1749966643411,-460.0,0.00022465,4]
[365863200,1749966643420,-460.0,0.00022465,4]
[365863202,1749966643430,-460.0,0.00022465,4]
[365863204,1749966643439,-460.0,0.00022465,4]
[365863206,1749966643448,-474.06,0.00022465,4]
[365863208,1749966643457,-1556.61,0.00022465,4]
[365863211,1749966643467,-808.75,0.00022465,4]
[365863212,1749966643477,-460.0,0.00022465,4]
[365863214,1749966643486,-460.0,0.00022465,4]
[365863217,1749966643495,-1617.38,0.00022465,4]
[365863219,1749966643505,-460.0,0.00022465,4]
[365863221,1749966643514,-479.61,0.00022465,4]
[365863223,1749966643523,-460.0,0.00022465,4]
[365863225,1749966643532,-460.0,0.00022465,4]
[365863227,1749966643541,-460.0,0.00022465,4]
[365863229,1749966643550,-496.38,0.00022465,4]
[365863231,1749966643562,-519.43,0.00022465,4]
[365863233,1749966643571,-478.5,0.00022465,4]
[365863235,1749966643581,-460.0,0.00022465,4]
[365863237,1749966643590,-467.46,0.00022465,4]
[365863239,1749966643599,-460.0,0.00022465,4]
[365863241,1749966643608,-1017.17,0.00022465,4]
[365863243,1749966643617,-717.18,0.00022465,4]
[365863245,1749966643627,-460.0,0.00022465,4]
[365863247,1749966643636,-460.0,0.00022465,4]
[365863249,1749966643646,-460.0,0.00022465,4]
[365863251,1749966643655,-460.0,0.00022465,4]
[365863253,1749966643664,-1630.08,0.00022465,4]
[365863255,1749966643674,-518.86142643,0.00022465,4]
[365863257,1749966643683,-551.92213699,0.00022465,4]
[365863259,1749966643692,-330.45499987,0.00022465,4]
[365863261,1749966643702,-2417.17,0.00022465,4]
[365863263,1749966643712,-460.0,0.00022465,4]
[365863265,1749966643721,-1935.74,0.00022465,4]
[365863267,1749966643730,-648.65,0.00022465,4]
[365863269,1749966643740,-310.0,0.00022465,4]
[365863271,1749966643750,-484.04,0.00022465,4]
[365863273,1749966643759,-1584.24,0.00022465,4]
[365863275,1749966643769,-460.0,0.00022465,4]
[365863277,1749966643779,-460.0,0.00022465,4]
[365863279,1749966643788,-460.0,0.00022465,4]
[365863281,1749966643798,-460.0,0.00022465,4]
[365863283,1749966643807,-460.0,0.00022465,4]
[365863285,1749966643816,-460.0,0.00022465,4]
[365863287,1749966643826,-541.18,0.00022465,4]
[365863289,1749966643835,-2700.54,0.00022465,4]
[365863291,1749966643845,-658.31,0.00022465,4]
[365863293,1749966643855,-827.29,0.00022465,4]
[365863295,1749966643864,-460.0,0.00022465,4]
[365863297,1749966643873,-671.48,0.00022465,4]
[365863299,1749966643883,-1784.56,0.00022465,4]
[365863301,1749966643893,-379.44324504,0.00022465,4]
[365863303,1749966643902,-460.0,0.00022465,4]
[365863305,1749966643912,-611.72,0.00022465,4]
[365863307,1749966643921,-3838.9,0.00022465,4]
[365863309,1749966643931,-460.0,0.00022465,4]
[365863310,1749966643940,-574.36211615,0.00022465,4]
[365863311,1749966643950,-501.30969214,0.00022521,2]
[365863312,1749966643960,-1004.40342295,0.00022521,2]
[365863313,1749966643969,-151.0,0.00022521,7]
[365863314,1749966643979,-420.0,0.00022718,2]
[365863315,1749966643988,-151.0,0.00022721,7]
[365863316,1749966643997,-151.0,0.00022739,7]
[365863317,1749966644007,-151.0,0.00022739,7]
[365863318,1749966644016,-460.0,0.00022739,4]
[365863319,1749966644025,-460.0,0.00022739,4]
[365863320,1749966644034,-508.45,0.00022739,4]
[365863322,1749966644043,-350.0,0.00022739,4]
[365863324,1749966644053,-721.41,0.00022739,4]
[365863326,1749966644062,-500.5588327,0.00022739,4]
[365863328,1749966644071,-585.05,0.00022739,4]
[365863330,1749966644082,-460.0,0.00022739,2]
[365863332,1749966644091,-460.0,0.00022739,4]
[365863334,1749966644100,-343.65779169,0.00022739,4]
[365863336,1749966644110,-460.0,0.00022739,4]
[365863338,1749966644119,-460.0,0.00022739,4]
[365863340,1749966644129,-460.0,0.00022739,4]
[365863342,1749966644138,-460.0,0.00022739,4]
[365863344,1749966644147,-2760.11,0.00022739,4]
[365863346,1749966644157,-460.0,0.00022739,4]
[365863348,1749966644166,-460.0,0.00022739,4]
[365863350,1749966644176,-3303.82,0.00022739,4]
[365863352,1749966644185,-635.23,0.00022739,4]
[365863354,1749966644197,-3015.46,0.00022739,4]
[365863356,1749966644207,-913.79,0.00022739,4]
[365863358,1749966644217,-3798.34,0.00022739,4]
[365863360,1749966644227,-460.0,0.00022739,4]
[365863362,1749966644235,-1209.64,0.00022739,4]
[365863364,1749966644245,-542.42,0.00022739,4]
[365863366,1749966644255,-1388.45,0.00022739,4]
[365863368,1749966644264,-460.0,0.00022739,4]
[365863370,1749966644273,-557.09,0.00022739,4]
[365863372,1749966644282,-462.39254253,0.00022739,4]
[365863374,1749966644291,-460.0,0.00022739,4]
[365863376,1749966644301,-460.0,0.00022739,4]
[365863378,1749966644310,-460.0,0.00022739,4]
[365863380,1749966644319,-474.06,0.00022739,4]
[365863382,1749966644328,-1556.61,0.00022739,4]
[365863384,1749966644338,-808.75,0.00022739,4]
[365863386,1749966644347,-466.04675364,0.00022739,4]
[365863388,1749966644356,-460.0,0.00022739,4]
[365863390,1749966644365,-1617.38,0.00022739,4]
[365863392,1749966644375,-460.0,0.00022739,4]
[365863394,1749966644384,-479.61,0.00022739,4]
[365863396,1749966644394,-460.0,0.00022739,4]
[365863398,1749966644403,-460.0,0.00022739,4]
[365863400,1749966644412,-460.0,0.00022739,4]
[365863402,1749966644420,-496.38,0.00022739,4]
[365863404,1749966644429,-519.43,0.00022739,4]
[365863406,1749966644439,-478.5,0.00022739,4]
[365863408,1749966644448,-460.0,0.00022739,4]
[365863410,1749966644457,-467.46,0.00022739,4]
[365863412,1749966644466,-460.0,0.00022739,4]
[365863414,1749966644475,-1017.17,0.00022739,4]
[365863416,1749966644484,-717.18,0.00022739,4]
[365863418,1749966644493,-460.0,0.00022739,4]
[365863420,1749966644502,-460.0,0.00022739,4]
[365863422,1749966644511,-460.0,0.00022739,4]
[365863424,1749966644520,-460.0,0.00022739,4]
[365863426,1749966644529,-1630.08,0.00022739,4]
[365863428,1749966644538,-2417.17,0.00022739,4]
[365863430,1749966644548,-460.0,0.00022739,4]
[365863432,1749966644560,-1935.74,0.00022739,4]
[365863434,1749966644570,-648.65,0.00022739,4]
[365863436,1749966644579,-484.04,0.00022739,4]
[365863438,1749966644588,-1584.24,0.00022739,4]
[365863440,1749966644598,-460.0,0.00022739,4]
[365863442,1749966644607,-460.0,0.00022739,4]
[365863444,1749966644616,-460.0,0.00022739,4]
[365863446,1749966644626,-460.0,0.00022739,4]
[365863448,1749966644637,-508.07987483,0.00022739,4]
[365863450,1749966644647,-460.0,0.00022739,4]
[365863452,1749966644656,-541.18,0.00022739,4]
[365863454,1749966644665,-2700.54,0.00022739,4]
[365863456,1749966644674,-658.31,0.00022739,4]
[365863457,1749966644684,-827.29,0.00022739,4]
[365863459,1749966644693,-564.20076393,0.00022739,4]
[365863461,1749966644702,-671.48,0.00022739,4]
[365863464,1749966644711,-1784.56,0.00022739,4]
[365863466,1749966644722,-460.0,0.00022739,4]
[365863468,1749966644731,-611.72,0.00022739,4]
[365863470,1749966644740,-3838.9,0.00022739,4]
[365863472,1749966644749,-460.0,0.00022739,4]
[365863474,1749966644759,-500.0,0.00022921,2]
[365863476,1749966644768,-168.0,0.00022978,2]
[365863478,1749966644777,-365.0707398,0.00022986,2]
[365863480,1749966644786,-694.24718203,0.00022991,2]
[365863482,1749966644795,-5000.0,0.00022996,2]
[365863484,1749966644804,-500.0,0.00022998,2]
[365863486,1749966644813,-151.0,0.00023,7]
[365863488,1749966644822,-151.0,0.00023,7]
[365863490,1749966644831,-186.0,0.00023,7]
[365863492,1749966644840,-151.0,0.00023013,7]
[365863494,1749966644849,-501.51307386,0.00023013,4]
[365863496,1749966644860,-460.0,0.00023013,4]
[365863498,1749966644869,-508.45,0.00023013,4]
[365863500,1749966644879,-721.41,0.00023013,4]
[365863502,1749966644888,-585.05,0.00023013,4]
[365863504,1749966644897,-460.0,0.00023013,2]
[365863506,1749966644907,-460.0,0.00023013,4]
[365863508,1749966644917,-460.0,0.00023013,4]
[365863510,1749966644926,-460.0,0.00023013,4]
[365863512,1749966644935,-460.0,0.00023013,4]
[365863514,1749966644944,-2760.11,0.00023013,4]
[365863516,1749966644953,-460.0,0.00023013,4]
[365863518,1749966644963,-3303.82,0.00023013,4]
[365863520,1749966644972,-3015.46,0.00023013,4]
[365863522,1749966644981,-635.23,0.00023013,4]
[365863524,1749966644990,-913.79,0.00023013,4]
[365863526,1749966645000,-3798.34,0.00023013,4]
[365863528,1749966645009,-460.0,0.00023013,4]
[365863530,1749966645019,-1209.64,0.00023013,4]
[365863532,1749966645028,-542.42,0.00023013,4]
[365863534,1749966645038,-1388.45,0.00023013,4]
[365863536,1749966645047,-460.0,0.00023013,4]
[365863538,1749966645057,-557.09,0.00023013,4]
[365863540,1749966645067,-460.0,0.00023013,4]
[365863542,1749966645076,-298.62,0.00023013,4]
[365863544,1749966645085,-460.0,0.00023013,4]
[365863546,1749966645094,-474.06,0.00023013,4]
[365863548,1749966645104,-1556.61,0.00023013,4]
[365863550,1749966645114,-808.75,0.00023013,4]
[365863552,1749966645123,-430.0,0.00023013,4]
[365863554,1749966645132,-151.0,0.00023013,7]
[365863556,1749966645141,-1617.38,0.00023013,4]
[365863558,1749966645151,-460.0,0.00023013,4]
[365863560,1749966645160,-479.61,0.00023013,4]
[365863562,1749966645171,-400.0,0.00023013,4]
[365863564,1749966645180,-460.0,0.00023013,4]
[365863566,1749966645190,-460.0,0.00023013,4]
[365863568,1749966645199,-496.38,0.00023013,4]
[365863570,1749966645208,-519.43,0.00023013,4]
[365863572,1749966645218,-478.5,0.00023013,4]
[365863574,1749966645227,-460.0,0.00023013,4]
[365863576,1749966645236,-467.46,0.00023013,4]
[365863578,1749966645246,-460.0,0.00023013,4]
[365863580,1749966645256,-1017.17,0.00023013,4]
[365863582,1749966645266,-717.18,0.00023013,4]
[365863584,1749966645275,-460.0,0.00023013,4]
[365863586,1749966645285,-460.0,0.00023013,4]
[365863588,1749966645294,-460.0,0.00023013,4]
[365863590,1749966645304,-460.0,0.00023013,4]
[365863592,1749966645313,-1630.08,0.00023013,4]
[365863594,1749966645322,-2417.17,0.00023013,4]
[365863596,1749966645331,-460.0,0.00023013,4]
[365863598,1749966645341,-1935.74,0.00023013,4]
[365863600,1749966645350,-648.65,0.00023013,4]
[365863602,1749966645360,-484.04,0.00023013,4]
[365863604,1749966645369,-1584.24,0.00023013,4]
[365863606,1749966645378,-460.0,0.00023013,4]
[365863608,1749966645387,-460.0,0.00023013,4]
[365863610,1749966645397,-460.0,0.00023013,4]
[365863612,1749966645406,-460.0,0.00023013,4]
[365863614,1749966645416,-460.0,0.00023013,4]
[365863616,1749966645425,-541.18,0.00023013,4]
[365863618,1749966645435,-2700.54,0.00023013,4]
[365863620,1749966645444,-658.31,0.00023013,4]
[365863622,1749966645454,-827.29,0.00023013,4]
[365863624,1749966645463,-671.48,0.00023013,4]
[365863626,1749966645472,-1784.56,0.00023013,4]
[365863628,1749966645482,-460.0,0.00023013,4]
[365863630,1749966645491,-611.72,0.00023013,4]
[365863632,1749966645500,-3838.9,0.00023013,4]
[365863634,1749966645511,-460.0,0.00023013,4]
[365863636,1749966645520,-500.0,0.00023022,2]
[365863638,1749966645530,-500.0,0.00023024,2]
[365863640,1749966645540,-500.0,0.00023025,2]
[365863643,1749966645550,-500.0,0.00023033,2]
[365863645,1749966645564,-168.0,0.00023038,2]
[365863647,1749966645573,-604.606277,0.0002304,2]
[365863649,1749966645582,-151.0,0.00023073,7]
[365863651,1749966645591,-365.0707398,0.00023096,2]
[365863653,1749966645601,-365.0707398,0.00023096,2]
[365863655,1749966645610,-500.0,0.00023121,2]
[365863657,1749966645619,-500.0,0.00023156,2]
[365863659,1749966645628,-500.0,0.00023158,2]
[365863661,1749966645638,-500.0,0.0002316,2]
[365863663,1749966645647,-500.0,0.00023188,2]
[365863665,1749966645657,-168.0,0.00023192,2]
[365863667,1749966645666,-500.0,0.000232,2]
[365863669,1749966645675,-519.043125,0.000232,2]
[365863671,1749966645684,-500.0,0.000232,2]
[365863673,1749966645693,-500.0,0.000232,2]
[365863675,1749966645703,-500.0,0.000232,2]
[365863677,1749966645712,-500.0,0.000232,2]
[365863679,1749966645721,-500.0,0.000232,2]
[365863693,1749966645844,-600.0,0.000232,2]
[365863695,1749966645855,-500.0,0.000232,2]
[365863697,1749966645864,-500.0,0.000232,2]